fUSD/lending_fUSD_20251012
["ID","MTS","AMOUNT","RATE_DAILY","PERIOD"]
[390964325,1760235035769,-616.0,0.00014796,2]
[390964327,1760235035778,-6440.0,0.00014796,2]
[390964329,1760235035788,-1000.0,0.000148,2]
[390964331,1760235035797,-397.0357,0.000148,2]
[390964333,1760235035806,-2500.0,0.000148,2]
[390964334,1760235035815,-11667.0788,0.000148,2]
[390964336,1760235035825,-1000.0,0.000148,2]
[390964338,1760235035834,-1000.0,0.000148,3]
[390964339,1760235035843,-1002.59,0.000148,4]
[390964340,1760235035853,-636.01517229,0.000148,2]
[390964341,1760235035863,-150.0,0.000148,2]
[390964342,1760235035874,-636.01517221,0.00014811,2]
[390964343,1760235035883,-195.0,0.0001482,2]
[390964344,1760235035892,-636.01517221,0.00014822,2]
[390964345,1760235035901,-636.01517221,0.00014833,2]
[390964346,1760235035910,-636.01517221,0.00014844,2]
[390964347,1760235035920,-2214.02407,0.0001485,2]
[390964348,1760235035930,-636.01517221,0.00014856,2]
[390964349,1760235035939,-636.01517221,0.00014867,2]
[390964350,1760235035948,-636.01517221,0.00014878,2]
[390964351,1760235035957,-2000.0,0.0001488,2]
[390964352,1760235035966,-500.0,0.0001488,2]
[390964353,1760235035975,-200.0,0.0001488,2]
[390964354,1760235035984,-168.0,0.00014886,2]
[390964355,1760235035994,-636.01517221,0.00014889,2]
[390964356,1760235036003,-300.0,0.00014892,2]
[390964357,1760235036012,-2041.00475565,0.00014892,2]
[390964358,1760235036021,-195.0,0.00014892,2]
[390964359,1760235036030,-2500.0,0.00014892,2]
[390964360,1760235036040,-300.0,0.00014892,2]
[390964361,1760235036050,-150.04986969,0.00014892,2]
[390964362,1760235036063,-300.0,0.00014892,2]
[390964363,1760235036072,-302.19007914,0.00014892,2]
[390964364,1760235036081,-2000.0,0.00014892,2]
[390964365,1760235036090,-936.0,0.00014895,2]
[390964366,1760235036100,-18898.91367541,0.00014896,2]
[390964367,1760235036109,-3044.07977032,0.00014898,2]
[390964368,1760235036118,-990.27962589,0.00014898,2]
[390964369,1760235036127,-230.27610684,0.00014899,2]
[390964370,1760235036135,-639.91745215,0.00014899,2]
[390964371,1760235036144,-6512.84754544,0.00014899,2]
[390964372,1760235036154,-6512.84754544,0.00014899,2]
[390964373,1760235036162,-6512.84754544,0.00014899,2]
[390964374,1760235036172,-6512.84754544,0.00014899,2]
[390964375,1760235036182,-6512.84754544,0.00014899,2]
[390964376,1760235036191,-244892.00314638,0.000149,2]
[390964377,1760235036200,-6512.84754544,0.000149,2]
[390964378,1760235036209,-6512.84754544,0.000149,2]
[390964379,1760235036218,-297.83467593,0.000149,2]
[390964380,1760235036228,-169435.9107,0.000149,2]
[390964381,1760235036238,-5000.0,0.000149,2]
[390964382,1760235036247,-6512.84754544,0.000149,2]
[390964383,1760235036256,-6512.84754544,0.000149,2]
[390964384,1760235036265,-1271.9123,0.000149,2]
[390964385,1760235036276,-5800.0,0.000149,2]
[390964386,1760235036285,-885.41803152,0.000149,2]
[390964387,1760235036295,-226.64621282,0.000149,2]
[390964388,1760235036305,-6894.34053929,0.000149,2]
[390964389,1760235036315,-636.01517221,0.000149,2]
[390964390,1760235036326,-55555.0,0.000149,2]
[390964391,1760235036335,-560.52286601,0.000149,2]
[390964392,1760235036346,-6512.84754544,0.000149,2]
[390964393,1760235036355,-1352.42963232,0.000149,2]
[390964394,1760235036365,-758.59862428,0.000149,2]
[390964395,1760235036376,-577.21780151,0.000149,2]
[390964396,1760235036386,-161.06964973,0.000149,2]
[390964397,1760235036396,-1090444.6981373,0.00014903,2]
[390964398,1760235036406,-244892.00314638,0.00014909,2]
[390964399,1760235036416,-1968.139,0.00014912,2]
[390964400,1760235036426,-727.56102862,0.00014915,2]
[390964401,1760235036436,-18898.91367541,0.00014922,2]
[390964402,1760235036447,-24096.00750251,0.0001493,2]
[390964403,1760235036464,-297.83467593,0.00014932,2]
[390964404,1760235036474,-23361.46533766,0.00014945,2]
[390964405,1760235036487,-734.54216485,0.00014945,2]
[390964406,1760235036497,-1417.41635749,0.00014946,2]
[390964407,1760235036509,-500.0,0.00014946,2]
[390964408,1760235036538,-431.63352924,0.00014946,2]
[390964409,1760235036550,-1500.0,0.00014946,2]
[390964677,1760235040593,-1852.42,0.0001371,2]
[390964679,1760235040603,-23808.37077158,0.00014946,2]
[390964681,1760235040612,-18898.91367541,0.0001495,2]
[390964683,1760235040622,-244892.00314638,0.00014951,2]
[390964685,1760235040631,-27657.42065831,0.00014952,2]
[390964687,1760235040640,-1090444.6981373,0.00014954,2]
[390964689,1760235040648,-297.83467593,0.0001496,2]
[390964691,1760235040657,-24096.00750251,0.00014961,2]
[390964693,1760235040666,-27657.42065831,0.00014961,2]
[390964695,1760235040676,-1090444.6981373,0.00014967,2]
[390964697,1760235040685,-187.977,0.00014967,2]
[390964699,1760235040694,-207.638,0.00014967,2]
[390964701,1760235040703,-161.421,0.00014967,2]
[390964703,1760235040712,-208.834,0.00014967,2]
[390964705,1760235040721,-250.0,0.00014967,2]
[390964706,1760235040729,-158.0,0.00014967,2]
[390964708,1760235040739,-216.35,0.00014967,2]
[390964710,1760235040748,-150.285,0.00014967,2]
[390964712,1760235040757,-740.0,0.00014967,2]
[390964714,1760235040767,-1266.0,0.00014967,2]
[390964716,1760235040777,-2048.0,0.00014967,2]
[390964718,1760235040786,-3405.0,0.00014967,2]
[390964720,1760235040795,-604.0,0.00014967,2]
[390964722,1760235040804,-1587.0,0.00014967,2]
[390964724,1760235040813,-1309.0,0.00014967,2]
[390964726,1760235040822,-571.0,0.00014967,2]
[390964728,1760235040831,-818.0,0.00014967,2]
[390964730,1760235040843,-500.0,0.00014973,2]
[390964732,1760235040852,-500.0,0.00014973,2]
[390964734,1760235040861,-500.0,0.00014973,2]
[390964736,1760235040870,-500.0,0.00014973,2]
[390964738,1760235040879,-500.0,0.00014973,2]
[390964740,1760235040888,-174.93510912,0.00014973,2]
[390964742,1760235040898,-500.0,0.00014973,2]
[390964744,1760235040909,-501.97355162,0.00014973,2]
[390964746,1760235040919,-500.0,0.00014973,2]
[390964748,1760235040929,-533.975432,0.00014973,2]
[390964751,1760235040941,-501.0823818,0.00014973,2]
[390964752,1760235040951,-500.0,0.00014973,2]
[390964754,1760235040960,-150.0,0.00014974,2]
[390964756,1760235040969,-155.46362373,0.00014974,2]
[390964758,1760235040978,-150.0,0.00014974,2]
[390964760,1760235040987,-150.0,0.00014974,2]
[390964762,1760235040996,-150.0,0.00014974,2]
[390964764,1760235041005,-150.0,0.00014974,2]
[390964766,1760235041014,-150.0,0.00014974,2]
[390964768,1760235041024,-500.0,0.00014974,2]
[390964770,1760235041033,-500.0,0.00014974,2]
[390964772,1760235041043,-510.0,0.00014974,2]
[390964774,1760235041052,-150.0,0.00014974,2]
[390964776,1760235041061,-500.0,0.00014974,2]
[390964778,1760235041071,-150.0,0.00014974,2]
[390964780,1760235041079,-150.0,0.00014974,2]
[390964782,1760235041088,-500.0,0.00014974,2]
[390964784,1760235041097,-150.0,0.00014974,2]
[390964786,1760235041106,-150.0,0.00014974,2]
[390964788,1760235041115,-26410.0,0.00014986,2]
[390964790,1760235041124,-186.91036811,0.0001499,2]
[390964792,1760235041133,-9716.99,0.0001499,2]
[390964794,1760235041143,-186.91036811,0.0001499,2]
[390964796,1760235041152,-186.91036811,0.0001499,2]
[390964798,1760235041161,-1011.28697091,0.00014998,5]
[390964800,1760235041171,-561.77121503,0.00014999,2]
[390964802,1760235041180,-153.61033105,0.00014999,2]
[390964804,1760235041189,-78290.9545231,0.00014999,2]
[390964806,1760235041199,-1334.00611725,0.00014999,5]
[390964808,1760235041207,-18129.9585567,0.00014999,2]
[390964810,1760235041216,-3826.9802489,0.00014999,2]
[390964812,1760235041225,-156.064,0.00014999,2]
[390964814,1760235041233,-42340.5274358,0.00014999,2]
[390964816,1760235041242,-1190.1913801,0.00014999,2]
[390964817,1760235041252,-4000.642935,0.00014999,2]
[390964818,1760235041261,-4082.0206538,0.00014999,2]
[390964819,1760235041270,-500.0,0.00014999,2]
[390964820,1760235041279,-500.0,0.00015,2]
[390964821,1760235041289,-500.0,0.00015,2]
[390964822,1760235041298,-2178.0,0.00015,2]
[390964823,1760235041307,-828497.96102398,0.00015,2]
[390964824,1760235041316,-706899.46784998,0.00015,2]
[390964825,1760235041325,-345922.83225626,0.00015,2]
[390964826,1760235041334,-190598.63864588,0.00015,2]
[390964827,1760235041357,-279282.2343739,0.00015,2]
[390964943,1760235042452,-264.20129997,0.00014796,2]
[390965010,1760235043082,-636.79870003,0.00014796,2]
[390965012,1760235043091,-425.06877973,0.00015,2]
[390965499,1760235063578,-216.50315266,0.00013286,2]
[390965500,1760235068463,-238.82659494,0.00013286,2]
[390965614,1760236234948,-44.6702524,0.00013286,2]
[390965615,1760236234958,-708.25,0.00013699,2]
[390965616,1760236234968,-179.16333642,0.00013791,2]
[390965617,1760236234977,-250.0,0.00013804,7]
[390965618,1760236234987,-200.0,0.00013855,2]
[390965619,1760236234996,-666.0,0.00013891,3]
[390965620,1760236235007,-160.56,0.00013909,2]
[390965621,1760236235016,-487.60119878,0.00014256,2]
[390965622,1760236235025,-500.0,0.00014301,2]
[390965623,1760236235035,-168.0,0.0001444,2]
[390965624,1760236235044,-644.55496335,0.00014499,2]
[390965625,1760236235114,-555.44503665,0.00014499,2]
[390965626,1760236235123,-300.0,0.00014499,2]
[390965627,1760236235132,-1200.0,0.00014499,2]
[390965628,1760236235142,-300.0,0.00014499,2]
[390965629,1760236235151,-474.45,0.000145,2]
[390965630,1760236235160,-473.63,0.000145,2]
[390965631,1760236235169,-1276.36519276,0.000145,2]
[390965632,1760236235179,-257.91778498,0.00014606,2]
[390965633,1760236235189,-195.0,0.00014615,2]
[390965634,1760236235198,-517.02391804,0.00014615,2]
[390965635,1760236235210,-295.44518905,0.00014615,2]
[390965636,1760236235219,-169.0,0.00014654,2]
[390965637,1760236235229,-169.0,0.00014666,2]
[390965639,1760236235238,-169.0,0.00014698,2]
[390965640,1760236235247,-579.08356316,0.00014699,2]
[390965641,1760236235256,-474.45,0.000147,2]
[390965642,1760236235266,-351.21,0.00014767,2]
[390965643,1760236235275,-546.03,0.00014767,2]
[390965644,1760236235285,-153.96,0.00014767,2]
[390965646,1760236235294,-300.0,0.00014767,2]
[390965648,1760236235303,-1512.192,0.000148,2]
[390965650,1760236235313,-179.16333641,0.000148,2]
[390965652,1760236235322,-150.0,0.000148,2]
[390965654,1760236235331,-409.96344267,0.0001488,2]
[390965657,1760236235405,-90.03655733,0.0001488,2]
[390965660,1760236235415,-322.6107,0.0001489,2]
[390965661,1760236235425,-151.0,0.0001489,2]
[390965662,1760236235434,-151.0,0.0001489,2]
[390965663,1760236235444,-151.0,0.0001489,2]
[390965664,1760236235458,-151.0,0.0001489,2]
[390965665,1760236235468,-151.0,0.0001489,2]
[390965666,1760236235477,-151.0,0.0001489,2]
[390965667,1760236235488,-180.97677209,0.0001489,2]
[390965668,1760236235505,-500.0,0.0001489,2]
[390965669,1760236235516,-500.0,0.0001489,2]
[390965670,1760236235525,-500.0,0.0001489,2]
[390965671,1760236235535,-500.0,0.0001489,2]
[390965672,1760236235544,-500.0,0.0001489,2]
[390965673,1760236235553,-500.0,0.0001489,2]
[390965674,1760236235563,-500.0,0.0001489,2]
[390965675,1760236235572,-500.0,0.0001489,2]
[390965676,1760236235582,-500.0,0.0001489,2]
[390965677,1760236235591,-500.0,0.0001489,2]
[390965678,1760236235601,-500.0,0.0001489,2]
[390965679,1760236235611,-478.39309078,0.0001489,2]
[390965680,1760236235630,-21.60690922,0.0001489,2]
[390965681,1760236235640,-500.0,0.0001489,2]
[390965682,1760236235649,-5800.0,0.00014891,2]
[390965683,1760236235659,-509.95292059,0.00014899,2]
[390965684,1760236235668,-354.0231,0.00014899,2]
[390965685,1760236235677,-509.95292058,0.000149,2]
[390965686,1760236235687,-5000.0,0.000149,2]
[390965687,1760236235697,-1138.46649447,0.000149,2]
[390965688,1760236235706,-236.62234136,0.000149,2]
[390965689,1760236235716,-55555.0,0.000149,2]
[390965690,1760236235725,-5800.0,0.000149,2]
[390965691,1760236235735,-152.65258583,0.000149,2]
[390965692,1760236235745,-152.65258575,0.000149,2]
[390965693,1760236235754,-152.65258575,0.000149,2]
[390965694,1760236235764,-152.65258575,0.000149,2]
[390965695,1760236235774,-152.65258575,0.000149,2]
[390965696,1760236235783,-152.65258575,0.000149,2]
[390965697,1760236235793,-152.65258575,0.000149,2]
[390965698,1760236235806,-152.65258575,0.000149,2]
[390965699,1760236235816,-152.65258575,0.000149,2]
[390965700,1760236235826,-152.65258575,0.000149,2]
[390965701,1760236235836,-152.65258575,0.000149,2]
[390965702,1760236235847,-9079.06966324,0.000149,2]
[390965703,1760236235856,-18134.00261239,0.000149,2]
[390965704,1760236235866,-220.43789053,0.000149,2]
[390965705,1760236235877,-169.0,0.00014903,2]
[390965706,1760236235886,-169.0,0.0001494,2]
[390965707,1760236235895,-2136.208,0.00014945,2]
[390965708,1760236235905,-26410.0,0.00014959,2]
[390965709,1760236235914,-1314.867,0.00014967,2]
[390965710,1760236235924,-604.0,0.00014967,2]
[390965711,1760236235934,-1587.0,0.00014967,2]
[390965712,1760236235944,-571.0,0.00014967,2]
[390965713,1760236235953,-818.0,0.00014967,2]
[390965714,1760236235963,-901.0,0.00014967,2]
[390965715,1760236235972,-1182.0,0.00014967,2]
[390965716,1760236235983,-1696.0,0.00014967,2]
[390965717,1760236235992,-2545.798,0.00014967,2]
[390965718,1760236236002,-2048.0,0.00014967,2]
[390965719,1760236236013,-740.0,0.00014967,2]
[390965720,1760236236023,-1266.0,0.00014967,2]
[390965721,1760236236032,-3405.0,0.00014967,2]
[390965722,1760236236042,-500.0,0.00014973,2]
[390965723,1760236236052,-533.975432,0.00014973,2]
[390965724,1760236236062,-500.0,0.00014973,2]
[390965725,1760236236071,-507.46837532,0.00014973,2]
[390965726,1760236236080,-501.91991743,0.00014973,2]
[390965727,1760236236089,-500.0,0.00014973,2]
[390965728,1760236236099,-500.94536402,0.00014973,2]
[390965729,1760236236108,-501.0823818,0.00014973,2]
[390965730,1760236236117,-500.0,0.00014973,2]
[390965731,1760236236127,-500.29409942,0.00014973,2]
[390965732,1760236236137,-500.0,0.00014973,2]
[390965733,1760236236147,-501.97355162,0.00014973,2]
[390965734,1760236236156,-500.0,0.00014973,2]
[390965735,1760236236166,-503.20232787,0.00014973,2]
[390965736,1760236236175,-506.64156291,0.00014973,2]
[390965737,1760236236185,-500.0,0.00014973,2]
[390965738,1760236236195,-500.0,0.00014973,2]
[390965739,1760236236205,-174.93510912,0.00014973,2]
[390965740,1760236236214,-501.36687773,0.00014973,2]
[390965741,1760236236224,-501.57961135,0.00014973,2]
[390965742,1760236236234,-150.0,0.00014974,2]
[390965743,1760236236244,-150.0,0.00014974,2]
[390965744,1760236236254,-150.0,0.00014974,2]
[390965745,1760236236264,-150.0,0.00014974,2]
[390965746,1760236236274,-150.0,0.00014974,2]
[390965747,1760236236283,-500.0,0.00014974,2]
[390965748,1760236236293,-500.0,0.00014974,2]
[390965749,1760236236302,-510.0,0.00014974,2]
[390965750,1760236236312,-150.0,0.00014974,2]
[390965751,1760236236321,-150.0,0.00014974,2]
[390965752,1760236236331,-150.0,0.00014974,2]
[390965753,1760236236340,-151.02888477,0.00014974,2]
[390965754,1760236236349,-151.12884753,0.00014974,2]
[390965755,1760236236359,-150.0,0.00014974,2]
[390965756,1760236236368,-155.46362373,0.00014974,2]
[390965757,1760236236377,-150.0,0.00014974,2]
[390965758,1760236236387,-150.0,0.00014974,2]
[390965759,1760236236396,-500.0,0.00014974,2]
[390965760,1760236236406,-168.0,0.00014977,2]
[390965761,1760236236415,-186.91036811,0.0001499,2]
[390965762,1760236236424,-186.91036811,0.0001499,2]
[390965763,1760236236434,-186.91036811,0.0001499,2]
[390965764,1760236236444,-168.53136451,0.00014999,2]
[390965765,1760236236453,-150.0,0.00014999,2]
[390965766,1760236236463,-151.75218473,0.00014999,2]
[390965767,1760236236474,-151.12539155,0.00014999,2]
[390965768,1760236236484,-1334.00611725,0.00014999,5]
[390965769,1760236236493,-25952.15363156,0.00014999,2]
[390965770,1760236236506,-297.52122527,0.00014999,2]
[390965771,1760236236518,-860.31122108,0.00014999,2]
[390965772,1760236236537,-4885.28474669,0.00014999,2]
[390965776,1760236237882,-2121.38516618,0.00014999,2]
[390965777,1760236237936,-279.43428,0.00014999,2]
[390965778,1760236237992,-7725.464,0.00014999,2]
[390965958,1760236239930,-553.65,0.00014999,2]
[390965960,1760236239941,-69478.26513982,0.00014999,2]
[390965962,1760236239952,-7148.2984746,0.00014999,2]
[390965964,1760236239960,-156.064,0.00014999,2]
[390965966,1760236239970,-1011.28697091,0.00014999,5]
[390965968,1760236239979,-1044.4488431,0.00014999,2]
[390965970,1760236239988,-16785.8128146,0.00014999,2]
[390965972,1760236239997,-3887.1168773,0.00014999,2]
[390965974,1760236240007,-9077.9346392,0.00014999,2]
[390965976,1760236240016,-1765.0,0.00015,2]
[390965978,1760236240025,-852945.57828095,0.00015,2]
[390965980,1760236240035,-1327978.76430586,0.00015,2]
[390965984,1760236240068,-855.43458466,0.00015,2]
[390965986,1760236240083,-298.98565042,0.00015,2]
[390965988,1760236240096,-33104.52928233,0.00015,2]
[390965993,1760236240144,-349.034,0.00015,2]
[390966002,1760236240221,-35576.4815,0.00015,2]
[390966005,1760236240233,-512.27802841,0.00015,2]
[390966218,1760236243413,-6440.0,0.00014967,2]
[390966219,1760236243422,-3988.42003666,0.00015,2]
[390966220,1760236245898,-641.04780414,0.000149,2]
[390966221,1760236245908,-150.0,0.00014974,2]
[390966222,1760236245918,-1069.65219586,0.00015,2]
[390966223,1760236246016,-4575.21295634,0.00015,2]
[390966224,1760236246068,-22116.0,0.00015,2]
[390966225,1760236246079,-352.0821344,0.00015,2]
[390966226,1760236246090,-1650.0,0.00015,2]
[390966227,1760236246180,-2811.02904244,0.00015,2]
[390966242,1760236458023,-265.16748973,0.00013286,2]
[390966243,1760236488366,-234.83251027,0.00013286,2]
[390966244,1760236759966,-614.6222239,0.00013286,2]
[390966245,1760236759988,-46.16205774,0.00013286,2]
[390966246,1760236763494,-161.95133888,0.00013286,2]
[390966260,1760237007761,201.58,6.956e-05,2]
[390966276,1760237431972,-91.88660338,0.00013286,2]
[390966277,1760237431982,-2346.32326652,0.00013759,2]
[390966278,1760237431992,-200.0,0.00013776,2]
[390966279,1760237432002,-201.58,0.00013911,2]
[390966280,1760237432011,-1500.0,0.00013927,2]
[390966281,1760237432020,-250.0,0.00014045,2]
[390966282,1760237432030,-168.0,0.00014255,2]
[390966283,1760237432039,-190.0,0.00014408,2]
[390966284,1760237432048,-606.0,0.00014502,2]
[390966285,1760237432057,-381.0,0.00014561,2]
[390966286,1760237432066,-190.0,0.00014591,2]
[390966287,1760237432076,-301.69582067,0.00014615,2]
[390966288,1760237432084,-2500.0,0.00014615,2]
[390966289,1760237432093,-2127.93430943,0.00014615,2]
[390966290,1760237432150,-372.06569057,0.00014615,2]
[390966291,1760237432160,-1177.22851941,0.00014615,2]
[390966292,1760237432170,-381.0,0.00014661,2]
[390966293,1760237432180,-190.0,0.00014707,2]
[390966294,1760237432189,-381.0,0.00014722,2]
[390966295,1760237432198,-190.0,0.00014736,2]
[390966296,1760237432207,-153.56916317,0.00014773,2]
[390966297,1760237432218,-150.0,0.00014779,2]
[390966298,1760237432227,-962.03990458,0.0001478,2]
[390966299,1760237432237,-6740.71960182,0.0001478,2]
[390966300,1760237432247,-202.81914978,0.0001478,2]
[390966301,1760237432256,-5783.52430424,0.0001478,2]
[390966473,1760237439999,-49771.47569576,0.0001478,2]
[390966475,1760237440010,-427.36520276,0.0001478,2]
[390966477,1760237440019,-901.61975488,0.0001478,2]
[390966479,1760237440028,-12778.62023828,0.0001478,2]
[390966481,1760237440038,-195.41645866,0.0001478,2]
[390966483,1760237440048,-258.54,0.0001479,2]
[390966485,1760237440056,-258.54,0.0001479,2]
[390966487,1760237440065,-153.56916316,0.00014798,2]
[390966489,1760237440075,-500.0,0.00014799,2]
[390966491,1760237440085,-500.0,0.00014799,2]
[390966493,1760237440094,-500.0,0.00014799,2]
[390966495,1760237440103,-298.63279506,0.00014799,2]
[390966496,1760237440113,-500.0,0.00014799,2]
[390966498,1760237440122,-500.0,0.00014799,2]
[390966500,1760237440132,-500.0,0.00014799,2]
[390966502,1760237440146,-500.0,0.00014799,2]
[390966504,1760237440155,-500.0,0.00014799,2]
[390966506,1760237440165,-202.81914973,0.000148,2]
[390966508,1760237440174,-200172.99,0.000148,2]
[390966510,1760237440184,-381.0,0.00014811,2]
[390966512,1760237440193,-1969.5313605,0.00014812,2]
[390966514,1760237440203,-202.81914973,0.0001482,2]
[390966516,1760237440215,-227.0,0.00014822,2]
[390966517,1760237440224,-153.56916316,0.00014824,2]
[390966519,1760237440234,-258.54,0.0001483,2]
[390966521,1760237440247,-202.81914973,0.0001484,2]
[390966523,1760237440256,-427.36520275,0.0001484,2]
[390966525,1760237440267,-901.61975488,0.0001484,2]
[390966527,1760237440276,-761.93931215,0.00014843,2]
[390966528,1760237440286,-255.42301849,0.00014843,2]
[390966530,1760237440295,-153.56916316,0.00014849,2]
[390966532,1760237440304,-253.0,0.00014856,2]
[390966534,1760237440314,-202.81914973,0.0001486,2]
[390966536,1760237440322,-258.54,0.0001487,2]
[390966538,1760237440332,-258.54,0.0001487,2]
[390966540,1760237440341,-409.93710416,0.00014873,2]
[390966542,1760237440351,-500.0,0.00014873,2]
[390966543,1760237440360,-500.0,0.00014873,2]
[390966545,1760237440369,-500.0,0.00014873,2]
[390966547,1760237440378,-500.0,0.00014873,2]
[390966549,1760237440387,-500.0,0.00014873,2]
[390966551,1760237440396,-500.0,0.00014873,2]
[390966553,1760237440406,-500.0,0.00014873,2]
[390966555,1760237440415,-153.56916316,0.00014875,2]
[390966557,1760237440425,-408.0,0.00014877,2]
[390966559,1760237440434,-500.0,0.00014879,2]
[390966561,1760237440444,-230.69208352,0.00014879,2]
[390966563,1760237440453,-259.83686036,0.00014879,2]
[390966565,1760237440463,-217.29487541,0.00014879,2]
[390966566,1760237440471,-454.10854371,0.00014879,2]
[390966568,1760237440481,-858476.94698874,0.0001488,2]
[390966570,1760237440491,-1041791.27408518,0.0001488,2]
[390966575,1760237440528,-420.72994523,0.0001488,2]
[390966608,1760237440870,-0.01125475,0.0001488,2]
[390966703,1760237443076,-11022.204,0.0001488,2]
[390966727,1760237444106,-1356.81244481,0.0001488,2]
[390966730,1760237445936,-895.131,0.0001488,2]
[390966731,1760237445990,-251.80008374,0.0001488,2]
[390966732,1760237446003,-22108.0,0.0001488,2]
[390966772,1760238632171,-226.68868191,0.00013611,2]
[390966773,1760238632184,-666.0,0.00013639,3]
[390966774,1760238632194,-322.46858576,0.00013686,2]
[390966775,1760238632206,-356.93967257,0.00013686,2]
[390966776,1760238632216,-672.83,0.00013699,2]
[390966777,1760238632225,-800.64924922,0.00013711,2]
[390966778,1760238632237,-217.91075078,0.00013711,2]
[390966779,1760238632247,-1461.19080398,0.00013734,2]
[390966780,1760238632256,-161.01,0.00013735,2]
[390966781,1760238632266,-206.98,0.00013775,2]
[390966782,1760238632275,-226.6886819,0.00013826,2]
[390966783,1760238632285,-201.4889337,0.00013992,2]
[390966784,1760238632294,-201.24631513,0.00013992,2]
[390966785,1760238632303,-300.0,0.00013997,2]
[390966786,1760238632313,-1200.0,0.00013997,2]
[390966787,1760238632322,-224.0,0.00013997,2]
[390966788,1760238632331,-150.0,0.00013998,2]
[390966789,1760238632340,-188.63777297,0.00013999,2]
[390966790,1760238632349,-500.0,0.00013999,2]
[390966791,1760238632359,-500.0,0.00013999,2]
[390966792,1760238632368,-500.0,0.00013999,2]
[390966793,1760238632377,-437.3634843,0.00013999,2]
[390966794,1760238632386,-500.0,0.00013999,2]
[390966795,1760238632395,-500.0,0.00013999,2]
[390966796,1760238632404,-500.0,0.00013999,2]
[390966797,1760238632414,-500.0,0.00013999,2]
[390966798,1760238632423,-500.0,0.00013999,2]
[390966799,1760238632435,-500.0,0.00013999,2]
[390966800,1760238632444,-500.0,0.00013999,2]
[390966801,1760238632455,-2351.22199774,0.00013999,2]
[390966802,1760238632464,-604.15149825,0.00013999,2]
[390966803,1760238632473,-229.30257073,0.00013999,2]
[390966804,1760238632485,-50682.65469052,0.00014,2]
[390966805,1760238632495,-226.6886819,0.00014041,2]
[390966807,1760238632509,-169.74,0.00014141,2]
[390966809,1760238632519,-175.92,0.000142,2]
[390966812,1760238632530,-546.32,0.000142,2]
[390966813,1760238632539,-168.03,0.000142,2]
[390966815,1760238632549,-413.34,0.000142,2]
[390966817,1760238632558,-300.0,0.000142,2]
[390966820,1760238632569,-954.68,0.000142,2]
[390966822,1760238632578,-694.77,0.000142,2]
[390966823,1760238632587,-546.32,0.000142,2]
[390966826,1760238632597,-175.92,0.000142,2]
[390966829,1760238632606,-413.34,0.000142,2]
[390966831,1760238632615,-694.77,0.000142,2]
[390966835,1760238632626,-175.92,0.000142,2]
[390966838,1760238632635,-546.32,0.000142,2]
[390966841,1760238632644,-413.34,0.000142,2]
[390966843,1760238632653,-694.77,0.000142,2]
[390966870,1760238632913,-546.32,0.000142,2]
[390966875,1760238632950,-175.92,0.000142,2]
[390966877,1760238632960,-694.77,0.000142,2]
[390966879,1760238632970,-1261.66,0.000142,2]
[390966881,1760238632980,-322.6107,0.00014249,2]
[390966883,1760238632989,-500.0,0.00014249,2]
[390966885,1760238632999,-8882.6885148,0.00014249,2]
[390966887,1760238633008,-500.0,0.00014249,2]
[390966889,1760238633018,-500.0,0.00014249,2]
[390966891,1760238633028,-557.12283965,0.00014249,2]
[390966893,1760238633038,-257.91778498,0.00014249,2]
[390966895,1760238633047,-601.3376128,0.00014249,2]
[390966897,1760238633057,-153.9,0.000143,2]